fUST/lending_fUST_20251018
["ID","MTS","AMOUNT","RATE_DAILY","PERIOD"]
[391714788,1760743044871,226.41273691,0.00026934,2]
[391714789,1760743047142,199.18,0.00026924,10]
[391714790,1760743049492,1200.0,0.00026933,2]
[391714791,1760743051939,299.19961355,0.000269,2]
[391714792,1760743057468,165.99,0.00026924,10]
[391714793,1760743067885,829.95,0.00026924,10]
[391714794,1760743069301,5000.0,0.00026934,2]
[391714795,1760743082564,300.0,0.00026933,2]
[391714796,1760743092179,1779.27764954,0.00026934,2]
[391714797,1760743092203,3220.72235046,0.00026934,2]
[391714798,1760743098765,6779.28764954,0.00026924,2]
[391714799,1760743098788,10000.01,0.00026924,2]
[391714800,1760743098810,10000.01,0.00026924,2]
[391714801,1760743098832,10000.01,0.00026924,2]
[391714802,1760743098854,10000.01,0.00026924,2]
[391714803,1760743098876,10000.01,0.00026924,2]
[391714804,1760743098899,10000.01,0.00026924,2]
[391714805,1760743099076,10000.01,0.00026924,2]
[391714806,1760743099099,10000.01,0.00026924,2]
[391714807,1760743099123,10000.01,0.00026924,2]
[391714808,1760743102144,500.30876859,0.00033898,60]
[391714809,1760743121904,512.23130823,0.00033898,60]
[391714810,1760743142903,300.0,0.00026923,2]
[391714811,1760743145575,524.75643439,0.00026923,2]
[391714812,1760743168246,341.83978017,0.00026923,2]
[391714813,1760743168419,500.0,0.00026923,2]
[391714814,1760743169244,210.44378669,0.00026923,2]
[391714815,1760743173171,500.0,0.00026923,2]
[391714816,1760743173221,500.0,0.00026923,2]
[391714817,1760743173285,500.0,0.00026923,2]
[391714818,1760743173328,500.0,0.00026923,2]
[391714819,1760743173407,500.0,0.00026923,2]
[391714820,1760743173447,500.0,0.00026923,2]
[391714821,1760743173505,500.0,0.00026923,2]
[391714822,1760743173631,500.0,0.00026923,2]
[391714823,1760743173671,491.927319,0.00026923,2]
[391714824,1760743174209,953.5629186,0.00026834,2]
[391714825,1760743185722,1000.0,0.00026638,5]
[391714826,1760743202013,300.0,0.00026923,2]
[391714827,1760743202092,300.0,0.00026923,2]
[391714828,1760743202177,300.0,0.00026923,2]
[391714829,1760743202950,777.47976115,0.00026923,2]
[391714830,1760743202972,422.52023885,0.00026923,2]
[391714831,1760743203779,500.0,0.000253,2]
[391714832,1760743203836,195.33063271,0.00026396,2]
[391714833,1760743212002,178.32,0.00026914,2]
[391714834,1760743212214,178.32,0.00026914,2]
[391714835,1760743231829,4000.0,0.00026923,2]
[391714836,1760743246465,2621.36,0.00026914,3]
[391714837,1760743257558,1310.68,0.00026914,3]
[391714838,1760743262460,300.0,0.00026923,2]
[391714839,1760743268227,293.47912844,0.00026914,3]
[391714840,1760743268250,361.86087156,0.00026914,3]
[391714841,1760743275579,250.0,0.00026733,2]
[391714842,1760743278854,327.67,0.00026914,3]
[391714843,1760743279621,9060.47912844,0.00026834,3]
[391714844,1760743279642,10000.01,0.00026834,3]
[391714845,1760743279663,10000.01,0.00026834,3]
[391714846,1760743279685,165.82483437,0.00026834,3]
[391714847,1760743289355,300.0,0.000269,2]
[391714848,1760743289523,163.84,0.00026914,3]
[391714849,1760743300168,491.52,0.00026914,3]
[391714850,1760743301948,300.0,0.000269,2]
[391714851,1760743310413,5000.0,0.00026924,2]
[391714852,1760743314094,300.0,0.000269,2]
[391714853,1760743322529,300.0,0.00026923,2]
[391714854,1760743327137,300.0,0.000269,2]
[391714855,1760743336680,2678.82516563,0.00026924,2]
[391714856,1760743336703,2321.17483437,0.00026924,2]
[391714857,1760743339044,300.0,0.000269,2]
[391714858,1760743350629,1200.0,0.00026923,2]
[391714859,1760743351488,300.0,0.000269,2]
[391714860,1760743351842,300.0,0.000269,2]
[391714862,1760743359900,992.52926061,0.00026924,2]
[391714863,1760743364519,300.0,0.000269,2]
[391714864,1760743380114,4000.0,0.0002692,2]
[391714865,1760743382555,286.30590502,0.00026923,2]
[391714866,1760743382578,13.69409498,0.00026923,2]
[391714867,1760743434325,635.7086124,0.00026824,2]
[391714868,1760743442269,300.0,0.00026923,2]
[391714869,1760743450943,9050.60729262,0.00026834,3]
[391714870,1760743450964,10000.01,0.00026834,3]
[391714871,1760743450985,2495.70667041,0.00026834,3]
[391714872,1760743468067,356.89092681,0.00025205,2]
[391714873,1760743468490,410.42456583,0.00025805,2]
[391714874,1760743468906,463.95820485,0.00026405,2]
[391714875,1760743501454,315.59466536,0.00025728,2]
[391714876,1760743502401,300.0,0.00026923,2]
[391714877,1760743502429,240.0,0.00026923,2]
[391714878,1760743502461,1200.0,0.00026923,2]
[391714879,1760743502657,300.0,0.00026923,2]
[391714880,1760743502953,568.07039764,0.00025728,2]
[391714881,1760743505542,1009.90292915,0.00025728,2]
[391714882,1760743507459,1576.39535346,0.00025728,2]
[391714883,1760743509663,166.0,0.00026924,2]
[391714884,1760743510367,181.08010149,0.00026924,2]
[391714885,1760743510418,151.0,0.00026924,2]
[391714886,1760743511044,151.0,0.00026924,2]
[391714887,1760743512232,113.986185,0.00026924,2]
[391714888,1760743512258,37.013815,0.00026924,2]
[391714889,1760743512721,1000.0,0.00026924,2]
[391714890,1760743512785,196.15767209,0.00026924,2]
[391714891,1760743512973,151.0,0.00026924,2]
[391714892,1760743513397,1000.0,0.00026924,2]
[391714893,1760743513664,151.0,0.00026924,2]
[391714894,1760743514095,1000.0,0.00026924,2]
[391714895,1760743514336,151.0,0.00026924,2]
[391714896,1760743514708,1000.0,0.00026924,2]
[391714897,1760743514999,151.0,0.00026924,2]
[391714898,1760743515199,151.0,0.00026924,2]
[391714899,1760743515407,1000.0,0.00026924,2]
[391714900,1760743515652,151.0,0.00026924,2]
[391714901,1760743515822,151.0,0.00026924,2]
[391714902,1760743516072,1000.0,0.00026924,2]
[391714903,1760743516366,151.0,0.00026924,2]
[391714904,1760743516513,151.0,0.00026924,2]
[391714905,1760743516663,1000.0,0.00026924,2]
[391714906,1760743517088,151.0,0.00026924,2]
[391714907,1760743517376,151.0,0.00026924,2]
[391714908,1760743517417,1000.0,0.00026924,2]
[391714909,1760743517647,105.83851291,0.00026924,2]
[391714910,1760743517670,98.02207312,0.00026924,2]
[391714911,1760743517837,151.0,0.00026924,2]
[391714912,1760743518006,1000.0,0.00026924,2]
[391714913,1760743518496,151.0,0.00026924,2]
[391714914,1760743518669,1000.0,0.00026924,2]
[391714915,1760743519360,151.0,0.00026924,2]
[391714916,1760743519397,1000.0,0.00026924,2]
[391714917,1760743519845,151.0,0.00026924,2]
[391714918,1760743519917,1000.0,0.00026924,2]
[391714919,1760743520515,151.0,0.00026924,2]
[391714920,1760743520586,1000.0,0.00026924,2]
[391714921,1760743521071,4146.98792688,0.00026924,2]
[391714922,1760743521095,10000.01,0.00026924,2]
[391714923,1760743521118,6599.2653567,0.00026924,2]
[391714924,1760743521164,151.0,0.00026924,2]
[391714925,1760743521259,1000.0,0.00026924,2]
[391714926,1760743521827,151.0,0.00026924,2]
[391714927,1760743521886,1000.0,0.00026924,2]
[391714928,1760743522498,1000.0,0.00026924,2]
[391714929,1760743522526,98.7446433,0.00026924,2]
[391714930,1760743522549,52.2553567,0.00026924,2]
[391714931,1760743523125,151.0,0.00026924,2]
[391714932,1760743523160,1000.0,0.00026924,2]
[391714933,1760743523188,151.0,0.00026924,2]
[391714934,1760743523750,1000.0,0.00026924,2]
[391714935,1760743523782,277.94260134,0.00026924,2]
[391714936,1760743524365,1000.0,0.00026924,2]
[391714937,1760743525009,1000.0,0.00026924,2]
[391714938,1760743525213,177.87594174,0.00026924,2]
[391714939,1760743526080,1000.0,0.00026924,2]
[391714940,1760743526768,1000.0,0.00026924,2]
[391714941,1760743527476,1000.0,0.00026924,2]
[391714942,1760743528135,1000.0,0.00026924,2]
[391714943,1760743528909,1000.0,0.00026924,2]
[391714944,1760743529820,189.93610022,0.00026924,2]
[391714945,1760743529842,810.06389978,0.00026924,2]
[391714946,1760743530037,1000.0,0.00026924,2]
[391714948,1760743530654,1000.0,0.00026924,2]
[391714949,1760743531360,1000.0,0.00026924,2]
[391714950,1760743532061,-7545.99026581,0.00026924,2]
[391714951,1760743532112,1000.0,0.00026924,2]
[391714952,1760743532193,-9000.01,0.00026924,2]
[391714953,1760743532288,-10000.01,0.00026924,2]
[391714954,1760743532807,468.12446282,0.00026924,2]
[391714955,1760743533307,151.0,0.00026924,2]
[391714956,1760743533915,151.0,0.00026924,2]
[391714957,1760743533961,250.0,0.00026924,2]
[391714958,1760743534590,151.0,0.00026924,2]
[391714959,1760743534629,250.0,0.00026924,2]
[391714960,1760743535178,-8578.88553718,0.00026924,2]
[391714961,1760743535205,151.0,0.00026924,2]
[391714962,1760743535292,250.0,0.00026924,2]
[391714963,1760743535896,-9599.01,0.00026924,2]
[391714964,1760743536075,-10000.01,0.00026924,2]
[391714965,1760743536395,211.64867116,0.00026924,2]
[391714966,1760743536474,250.0,0.00026924,2]
[391714967,1760743536850,151.0,0.00026924,2]
[391714968,1760743537131,250.0,0.00026924,2]
[391714969,1760743537786,250.0,0.00026924,2]
[391714970,1760743538406,250.0,0.00026924,2]
[391714971,1760743539072,250.0,0.00026924,2]
[391714972,1760743539637,1755.17296624,0.00025,2]
[391714973,1760743539659,4081.82703376,0.00025,2]
[391714974,1760743539723,250.0,0.00026924,2]
[391714975,1760743540376,250.0,0.00026924,2]
[391714976,1760743541065,250.0,0.00026924,2]
[391714977,1760743560856,151.0,0.000269,15]
[391714978,1760743561152,151.0,0.000269,15]
[391714979,1760743561546,151.0,0.000269,17]
[391714980,1760743561814,151.0,0.000269,14]
[391714981,1760743562195,151.0,0.000269,16]
[391714982,1760743562494,151.0,0.000269,16]
[391714983,1760743562551,300.0,0.00026923,2]
[391714984,1760743562786,151.0,0.000269,20]
[391714985,1760743563093,151.0,0.000269,10]
[391714986,1760743563242,500.0,0.000253,2]
[391714987,1760743563304,438.45480543,0.00026396,2]
[391714988,1760743563404,151.0,0.000269,16]
[391714989,1760743563729,151.0,0.000268,15]
[391714990,1760743565116,2419.72816081,0.00026924,2]
[391714991,1760743565140,2580.27183919,0.00026924,2]
[391714992,1760743577127,-4051.91652341,0.00026924,2]
[391714993,1760743582773,300.0,0.00026923,2]
[391714994,1760743583142,-9700.01,0.00026924,2]
[391714995,1760743587833,5000.0,0.00026924,2]
[391714996,1760743588730,209.71989783,0.000269,2]
[391714997,1760743610346,1910.01826298,0.00026924,2]
[391714998,1760743610370,3089.98173702,0.00026924,2]
[391714999,1760743612323,186.804166,0.00025924,2]
[391715000,1760743622576,300.0,0.00026923,2]
[391715001,1760743625574,1045.280731,0.00025924,2]
[391715002,1760743626355,610.790865,0.00013699,2]
[391715003,1760743626563,610.790865,0.00020187,2]
[391715004,1760743626771,610.790865,0.00026676,2]
[391715005,1760743632936,3545.57077098,0.00026924,2]
[391715006,1760743632959,1454.42922902,0.00026924,2]
[391715007,1760743643109,193.6,0.00029041,120]
[391715008,1760743649280,1200.0,0.00026923,2]
[391715009,1760743662839,7345.58077098,0.000199,2]
[391715010,1760743662861,10000.01,0.000199,2]
[391715011,1760743662884,2952.58218747,0.000199,2]
[391715012,1760743678207,5000.0,0.00026924,2]
[391715016,1760743679347,2047.42781253,0.00024774,2]
[391715017,1760743679370,10000.01,0.00024774,2]
[391715018,1760743679393,4611.98682379,0.00024774,2]
[391715020,1760743682531,300.0,0.00026923,2]
[391715021,1760743691224,475.03064376,0.00019205,5]
[391715022,1760743694623,423.8057416,0.00026824,2]
[391715023,1760743694983,4189.18679085,0.00026914,2]
[391715024,1760743695008,10000.01,0.00026914,2]
[391715025,1760743695031,10000.01,0.00026914,2]
[391715026,1760743695055,10000.01,0.00026914,2]
[391715027,1760743695079,10000.01,0.00026914,2]
[391715028,1760743695103,10000.01,0.00026914,2]
[391715029,1760743695126,10000.01,0.00026914,2]
[391715030,1760743695150,10000.01,0.00026914,2]
[391715031,1760743695173,10000.01,0.00026914,2]
[391715032,1760743695196,2687.55230795,0.00026914,2]
[391715033,1760743695228,7312.45769205,0.00026914,2]
[391715035,1760743700171,273.97622004,0.00021,2]
[391715036,1760743700777,1007.40957379,0.00015,2]
[391715038,1760743707051,286.36473394,0.0001,2]
[391715039,1760743708748,-300.0,0.000269,2]
[391715040,1760743708870,-2280.27183919,0.00026914,2]
[391715041,1760743708998,-10000.01,0.00026914,2]
[391715042,1760743709092,-10000.01,0.00026914,2]
[391715043,1760743709212,-10000.01,0.00026914,2]
[391715044,1760743709340,-10000.01,0.00026914,2]
[391715045,1760743709476,271.51196806,0.00026,2]
[391715046,1760743711160,1522.29104163,0.0002,30]
[391715047,1760743711315,-10000.01,0.00026914,2]
[391715048,1760743711426,-10000.01,0.00026914,2]
[391715049,1760743711542,-10000.01,0.00026914,2]
[391715050,1760743711660,-2715.99043244,0.00026914,2]
[391715051,1760743711688,-4568.02913512,0.00026914,2]
[391715052,1760743711715,1075.23227698,0.00025,2]
[391715053,1760743712305,473.85362686,0.00022,5]
[391715054,1760743713069,9526.15637314,0.00025,2]
[391715055,1760743713094,7017.97372327,0.00025,2]
[391715056,1760743713204,1742.98393003,0.000248,4]
[391715057,1760743713690,1239.0523467,0.00025,2]
[391715058,1760743713713,1410.45992618,0.00025,2]
[391715059,1760743714228,19152.75425938,0.00025,3]
[391715060,1760743714253,20847.24574062,0.00025,3]
[391715061,1760743714728,4152.75425938,0.00025,30]
[391715062,1760743715218,-158.8042301,0.00025,30]
[391715063,1760743715432,2664.80861173,0.00019,2]
[391715066,1760743717330,-161.29577784,0.00024,2]
[391715067,1760743717619,-9677.41844432,0.00025,30]
[391715069,1760743717716,-10000.01,0.00025,30]
[391715071,1760743720516,200.38801796,0.0002,2]
[391715072,1760743720592,-10000.01,0.00025,30]
[391715073,1760743720794,-10000.01,0.00025,30]
[391715074,1760743720964,-3010.9930662,0.00025,30]
[391715075,1760743720994,-209.92403442,0.00025,2]
[391715076,1760743721107,-3558.17579876,0.00025,2]
[391715077,1760743721157,-195.0,0.00025,2]
[391715078,1760743721227,-3389.18579876,0.00025,2]
[391715079,1760743721274,-3221.63840248,0.00025,2]
[391715080,1760743721323,-3221.63840248,0.00025,2]
[391715081,1760743721337,-3556.73319504,0.00025,2]
[391715082,1760743721372,-3075.96008366,0.00025,2]
[391715083,1760743721396,-3848.08983268,0.00025,2]
[391715084,1760743721777,-204.96221338,0.00021,2]
[391715085,1760743721807,-1021.01736598,0.000225,2]
[391715086,1760743721835,-150.99999944,0.00025,5]
[391715087,1760743721862,-900.0,0.00025469,3]
[391715088,1760743721889,-524.73497885,0.00026,2]
[391715089,1760743721919,-1664.85822385,0.00026,30]
[391715090,1760743722039,-1066.864437,0.00026,2]
[391715091,1760743722062,-10000.01,0.00026,2]
[391715092,1760743722665,-218.99,0.00023,2]
[391715093,1760743724862,-166.2944247,0.00023,2]
[391715094,1760743726384,-4940.02789027,0.00023,2]
[391715095,1760743726487,-119.95421946,0.00024142,2]
[391715096,1760743726525,-10000.01,0.00024142,2]
[391715097,1760743726592,-10000.01,0.00024142,2]
[391715098,1760743727244,-269.07999997,0.00024142,2]
[391715099,1760743729409,-10000.01,0.00024142,2]
[391715100,1760743729551,-10000.01,0.00024142,2]
[391715101,1760743729682,-10000.01,0.00024142,2]
[391715102,1760743729794,-10000.01,0.00024142,2]
[391715103,1760743729914,-10000.01,0.00024142,2]
[391715104,1760743730029,-505.64443186,0.00024142,2]
[391715105,1760743730066,-300.0,0.00024624,20]
[391715106,1760743730098,-300.0,0.00024624,20]
[391715107,1760743730143,-300.0,0.00024624,20]
[391715108,1760743730177,-300.0,0.00024624,20]
[391715109,1760743730211,-300.0,0.00024624,20]
[391715110,1760743730243,-300.0,0.00024624,20]
[391715111,1760743730390,-5388.72113628,0.0002465,2]
[391715112,1760743730422,-10000.01,0.0002465,2]
[391715113,1760743735751,-150.0,0.00020063,2]
[391715114,1760743735781,-150.0,0.00020963,2]
[391715115,1760743735815,-300.0,0.00024624,20]
[391715116,1760743735848,-300.0,0.00024624,20]
[391715117,1760743735880,-300.0,0.00024624,20]
[391715118,1760743735912,-300.0,0.00024624,20]
[391715119,1760743735944,-300.0,0.00024624,20]
[391715120,1760743735976,-300.0,0.00024624,20]
[391715121,1760743736008,-300.0,0.00024624,20]
[391715122,1760743736040,-300.0,0.00024624,20]
[391715123,1760743736072,-300.0,0.00024624,20]
[391715124,1760743736295,-4000.01,0.0002465,2]
[391715125,1760743736310,-10000.01,0.0002465,2]
[391715126,1760743736334,-158.04014128,0.0002465,2]
[391715127,1760743736353,-10000.01,0.0002465,2]
[391715128,1760743737759,-158.84985872,0.0002465,2]
[391715129,1760743740949,-300.0,0.0002465,2]
[391715130,1760743744528,-300.0,0.00024649,2]
[391715131,1760743744564,-9400.01,0.0002465,2]
[391715132,1760743744643,-10000.01,0.0002465,2]
[391715133,1760743744759,-10000.01,0.0002465,2]
[391715134,1760743744858,-10000.01,0.0002465,2]
[391715135,1760743744967,-799.49130343,0.0002465,2]
[391715136,1760743744995,-600.0,0.00025,2]
[391715137,1760743745057,-7201.02739314,0.00025,2]
[391715138,1760743745089,-728.88774446,0.00025,2]
[391715139,1760743745117,-150.0,0.00025,2]
[391715140,1760743745149,-600.0,0.00025142,20]
[391715141,1760743745177,-372.9,0.0002599,2]
[391715142,1760743745264,-6296.43451108,0.00026,2]
[391715143,1760743745298,-2536.69105192,0.00026,2]
[391715144,1760743745381,-4926.62789616,0.00026405,2]
[391715145,1760743747590,-73.37210384,0.00026405,2]
[391715146,1760743747835,-420.0,0.00026713,2]
[391715147,1760743747882,-300.0,0.000269,2]
[391715148,1760743747912,-300.0,0.000269,2]
[391715149,1760743748694,150.0,0.00019453,2]
[391715150,1760743749135,150.0,0.0002038,2]
[391715151,1760743750064,150.0,0.00021306,2]
[391715152,1760743750125,296.0,0.00026814,2]
[391715153,1760743750536,150.0,0.00022232,2]
[391715154,1760743750936,150.0,0.00023159,2]
[391715155,1760743751013,157.0,9.3e-07,2]
[391715156,1760743751436,150.0,0.00024085,2]
[391715157,1760743754437,193.3362184,0.000265,2]
[391715158,1760743754541,155.3018682,0.000265,2]
[391715159,1760743755448,5000.0,0.00026924,2]
[391715160,1760743763326,1111.62770572,0.00026924,2]
[391715161,1760743763351,3888.37229428,0.00026924,2]
[391715162,1760743767521,200.0,0.00016,2]
[391715163,1760743767640,200.0,0.00016021,2]
[391715164,1760743767846,200.0,0.00016043,2]
[391715165,1760743767931,200.0,0.00016064,2]
[391715166,1760743768226,200.0,0.00016085,2]
[391715167,1760743768302,200.0,0.00016106,2]
[391715168,1760743768392,200.0,0.00016127,2]
[391715169,1760743768480,200.0,0.00016149,2]
[391715170,1760743768550,200.0,0.0001617,2]
[391715171,1760743768624,200.0,0.00016191,2]
[391715172,1760743768696,200.0,0.00016212,2]
[391715173,1760743768869,200.0,0.00016233,2]
[391715174,1760743768903,200.0,0.00016255,2]
[391715175,1760743768971,200.0,0.00016276,2]
[391715176,1760743769128,-5498.3819134,0.00026924,2]
[391715177,1760743769160,200.0,0.00016297,2]
[391715178,1760743769200,200.0,0.00016318,2]
[391715179,1760743769233,-9600.01,0.00026924,2]
[391715180,1760743769258,200.0,0.00016339,2]
[391715181,1760743769300,200.0,0.00016361,2]
[391715182,1760743769343,-9600.01,0.00026924,2]
[391715183,1760743769369,200.0,0.00016382,2]
[391715184,1760743769460,200.0,0.00016403,2]
[391715185,1760743769722,-9600.01,0.00026924,2]
[391715186,1760743769799,200.0,0.00016424,2]
[391715187,1760743769840,200.0,0.00016446,2]
[391715188,1760743769875,200.0,0.00016467,2]
[391715189,1760743769915,200.0,0.00016488,2]
[391715190,1760743769964,-9200.01,0.00026924,2]
[391715191,1760743769989,200.0,0.00016509,2]
[391715192,1760743770020,-9800.01,0.00026924,2]
[391715193,1760743770051,200.0,0.0001653,2]
[391715194,1760743770111,200.0,0.00016552,2]
[391715195,1760743770166,200.0,0.00016573,2]
[391715196,1760743770202,200.0,0.00016594,2]
[391715197,1760743770243,200.0,0.00016615,2]
[391715198,1760743770318,111.63770572,0.00016636,2]
[391715199,1760743770340,88.36229428,0.00016636,2]
[391715200,1760743770393,200.0,0.00016658,2]
[391715201,1760743770470,200.0,0.00016679,2]
[391715202,1760743770543,200.0,0.000167,2]
[391715203,1760743770629,200.0,0.00016721,2]
[391715204,1760743770712,200.0,0.00016742,2]
[391715205,1760743770797,200.0,0.00016764,2]
[391715206,1760743770877,200.0,0.00016785,2]
[391715207,1760743770961,200.0,0.00016806,2]
[391715208,1760743771084,200.0,0.00016827,2]
[391715209,1760743771219,200.0,0.00016849,2]
[391715210,1760743771251,200.0,0.0001687,2]
[391715211,1760743771321,200.0,0.00016891,2]
[391715212,1760743771398,200.0,0.00016912,2]
[391715213,1760743771445,5000.0,0.00026924,2]
[391715214,1760743771477,200.0,0.00016933,2]
[391715215,1760743771544,200.0,0.00016955,2]
[391715216,1760743771676,200.0,0.00016976,2]
[391715217,1760743771731,200.0,0.00016997,2]
[391715218,1760743771809,200.0,0.00017018,2]
[391715219,1760743771886,200.0,0.00017039,2]
[391715220,1760743771981,200.0,0.00017061,2]
[391715221,1760743772054,200.0,0.00017082,2]
[391715222,1760743772088,300.0,0.00025,2]
[391715223,1760743772125,200.0,0.00017103,2]
[391715224,1760743772197,200.0,0.00017124,2]
[391715225,1760743772397,11.64770572,0.00017146,2]
[391715226,1760743772417,188.35229428,0.00017146,2]
[391715227,1760743772485,68.89770572,0.00017167,2]
[391715228,1760743772509,131.10229428,0.00017167,2]
[391715229,1760743772560,200.0,0.00017188,2]
[391715230,1760743772634,200.0,0.00017209,2]
[391715231,1760743773091,200.0,0.0001723,2]
[391715232,1760743773161,200.0,0.00017252,2]
[391715233,1760743773226,200.0,0.00017273,2]
[391715234,1760743773466,162.17599267,0.00017294,2]
[391715235,1760743773490,37.82400733,0.00017294,2]
[391715236,1760743773587,200.0,0.00017315,2]
[391715237,1760743773784,200.0,0.00017336,2]
[391715238,1760743773821,200.0,0.00017358,2]
[391715239,1760743773878,200.0,0.00017379,2]
[391715240,1760743773972,200.0,0.000174,2]
[391715241,1760743774037,200.0,0.00017421,2]
[391715242,1760743774151,200.0,0.00017442,2]
[391715243,1760743774217,200.0,0.00017464,2]
[391715244,1760743774280,200.0,0.00017485,2]
[391715245,1760743774345,200.0,0.00017506,2]
[391715246,1760743774441,200.0,0.00017527,2]
[391715247,1760743774510,200.0,0.00017549,2]
[391715248,1760743774717,200.0,0.0001757,2]
[391715249,1760743774792,200.0,0.00017591,2]
[391715250,1760743775071,200.0,0.00017612,2]
[391715251,1760743775100,200.0,0.00017633,2]
[391715252,1760743775145,200.0,0.00017655,2]
[391715253,1760743775186,200.0,0.00017676,2]
[391715254,1760743775261,-8888.37229428,0.00026924,2]
[391715255,1760743775289,200.0,0.00017697,2]
[391715256,1760743775327,200.0,0.00017718,2]
[391715257,1760743775343,-10000.01,0.00026924,2]
[391715258,1760743775386,200.0,0.00017739,2]
[391715259,1760743775423,162.70356347,0.00017761,2]
[391715260,1760743775449,37.29643653,0.00017761,2]
[391715261,1760743775487,200.0,0.00017782,2]
[391715262,1760743775527,200.0,0.00017803,2]
[391715263,1760743775563,200.0,0.00017824,2]
[391715264,1760743775599,200.0,0.00017845,2]
[391715265,1760743775649,200.0,0.00017867,2]
[391715266,1760743775718,200.0,0.00017888,2]
[391715267,1760743775783,200.0,0.00017909,2]
[391715268,1760743775850,200.0,0.0001793,2]
[391715269,1760743775918,200.0,0.00017952,2]
[391715270,1760743775984,200.0,0.00017973,2]
[391715271,1760743776089,200.0,0.00017994,2]
[391715272,1760743776149,200.0,0.00018015,2]
[391715273,1760743776216,200.0,0.00018036,2]
[391715274,1760743776279,200.0,0.00018058,2]
[391715275,1760743776360,200.0,0.00018079,2]
[391715276,1760743776476,13728.58063217,0.000181,2]
[391715277,1760743776499,9885.67751339,0.000181,2]
[391715278,1760743777651,-10000.01,0.00026924,2]
[391715279,1760743777781,-10000.01,0.00026924,2]
[391715280,1760743777886,-10000.01,0.00026924,2]
[391715281,1760743778010,-10000.01,0.00026924,2]
[391715282,1760743778136,-10000.01,0.00026924,2]
[391715283,1760743778252,-10000.01,0.00026924,2]
[391715284,1760743778363,-10000.01,0.00026924,2]
[391715285,1760743778494,-10000.01,0.00026924,2]
[391715286,1760743783819,-4122.45562172,0.00026655,2]
[391715287,1760743785629,1000.0,0.00026505,5]
[391715288,1760743788030,755.09875656,0.00026924,2]
[391715289,1760743798775,-5000.0,0.00026655,2]
[391715290,1760743798876,-4244.90124344,0.00026924,2]
[391715291,1760743798905,-417.15472785,0.00026924,2]
[391715292,1760743799113,-8920.81930086,0.00026924,2]
[391715293,1760743799145,-10000.01,0.00026924,2]
[391715294,1760743799265,-10000.01,0.00026924,2]
[391715295,1760743799375,-10000.01,0.00026924,2]
[391715296,1760743799480,-10000.01,0.00026924,2]
[391715297,1760743799573,-10000.01,0.00026924,2]
[391715298,1760743799689,-10000.01,0.00026924,2]
[391715299,1760743804832,-1200.0,0.00026923,2]